lending/lending_fUSD_20240112
["ID","MTS","AMOUNT","RATE_DAILY","PERIOD"]
[311371087,1705069859608,-500.0,0.00022859,2]
[311371088,1705069859618,-500.0,0.00022859,2]
[311371089,1705069859628,-500.0,0.00022859,2]
[311371090,1705069859637,-370.69889077,0.00022859,2]
[311371091,1705069859648,-206.96803689,0.00022859,2]
[311371092,1705069859657,-500.0,0.00022859,2]
[311371093,1705069859667,-528.73469261,0.00022859,2]
[311371094,1705069859677,-500.0,0.00022859,2]
[311371095,1705069859687,-500.0,0.00022859,2]
[311371096,1705069859698,-500.0,0.00022859,2]
[311371097,1705069859709,-500.0,0.00022859,2]
[311371098,1705069859718,-500.0,0.00022859,2]
[311371099,1705069859730,-500.0,0.00022859,2]
[311371100,1705069859740,-201.94589277,0.00022859,2]
[311371101,1705069859750,-500.0,0.00022859,2]
[311371102,1705069859759,-500.0,0.00022859,2]
[311371103,1705069859769,-500.0,0.00022859,2]
[311371104,1705069859778,-500.0,0.00022859,2]
[311371105,1705069859788,-500.0,0.00022859,2]
[311371106,1705069859798,-500.0,0.00022859,2]
[311371107,1705069859807,-500.0,0.00022859,2]
[311371108,1705069859817,-500.0,0.00022859,2]
[311371109,1705069859826,-500.0,0.00022859,2]
[311371110,1705069859846,-500.0,0.00022859,2]
[311371111,1705069859858,-645.0,0.00022859,2]
[311371112,1705069859869,-500.0,0.00022859,2]
[311371113,1705069859880,-500.0,0.00022859,2]
[311371114,1705069859891,-500.0,0.00022859,2]
[311371115,1705069859902,-500.0,0.00022859,2]
[311371116,1705069859913,-500.0,0.00022859,2]
[311371117,1705069859923,-500.0,0.00022859,2]
[311371118,1705069859934,-500.0,0.00022859,2]
[311371119,1705069859944,-500.0,0.00022859,2]
[311371120,1705069859954,-500.0,0.00022859,2]
[311371121,1705069859965,-500.0,0.00022859,2]
[311371122,1705069859975,-500.0,0.00022859,2]
[311371123,1705069859985,-500.0,0.00022859,2]
[311371124,1705069859995,-507.61289215,0.00022859,2]
[311371125,1705069860006,-500.0,0.00022859,2]
[311371126,1705069860016,-500.0,0.00022859,2]
[311371127,1705069860026,-500.0,0.00022859,2]
[311371128,1705069860036,-500.0,0.00022859,2]
[311371129,1705069860047,-500.0,0.00022859,2]
[311371130,1705069860057,-216.4250711,0.00022859,2]
[311371131,1705069860068,-500.0,0.00022859,2]
[311371132,1705069860078,-500.0,0.00022859,2]
[311371133,1705069860089,-500.0,0.00022859,2]
[311371134,1705069860100,-500.0,0.00022859,2]
[311371135,1705069860110,-500.0,0.00022859,2]
[311371136,1705069860120,-500.0,0.00022859,2]
[311371137,1705069860130,-500.0,0.00022859,2]
[311371138,1705069860140,-500.0,0.00022859,2]
[311371139,1705069860151,-500.0,0.00022859,2]
[311371140,1705069860160,-500.0,0.00022859,2]
[311371141,1705069860172,-500.0,0.00022859,2]
[311371142,1705069860183,-500.0,0.00022859,2]
[311371143,1705069860193,-500.0,0.00022859,2]
[311371144,1705069860203,-500.0,0.00022859,2]
[311371145,1705069860213,-500.0,0.00022859,2]
[311371146,1705069860223,-500.0,0.00022859,2]
[311371147,1705069860234,-500.0,0.00022859,2]
[311371148,1705069860244,-500.0,0.00022859,2]
[311371149,1705069860255,-500.0,0.00022859,2]
[311371150,1705069860265,-500.0,0.00022859,2]
[311371151,1705069860275,-500.0,0.00022859,2]
[311371152,1705069860285,-503.45292904,0.00022859,2]
[311371153,1705069860295,-500.0,0.00022859,2]
[311371154,1705069860305,-502.42,0.00022859,2]
[311371155,1705069860315,-500.0,0.00022859,2]
[311371156,1705069860325,-500.0,0.00022859,2]
[311371157,1705069860334,-500.0,0.00022859,2]
[311371158,1705069860344,-500.0,0.00022859,2]
[311371159,1705069860353,-500.0,0.00022859,2]
[311371160,1705069860362,-500.0,0.00022859,2]
[311371161,1705069860372,-500.0,0.00022859,2]
[311371162,1705069860382,-500.0,0.00022859,2]
[311371163,1705069860393,-500.0,0.00022859,2]
[311371164,1705069860403,-500.0,0.00022859,2]
[311371165,1705069860413,-500.0,0.00022859,2]
[311371166,1705069860422,-881.21,0.00022859,2]
[311371167,1705069860432,-500.0,0.00022859,2]
[311371168,1705069860442,-500.0,0.00022859,2]
[311371169,1705069860451,-535.59,0.00022859,2]
[311371170,1705069860461,-500.0,0.00022859,2]
[311371171,1705069860471,-500.0,0.00022859,2]
[311371172,1705069860484,-514.86,0.00022859,2]
[311371173,1705069860494,-157.43402789,0.0002289,2]
[311371174,1705069860503,-4540.888268,0.00022893,2]
[311371175,1705069860513,-164.18,0.00022898,2]
[311371176,1705069860523,-300.0,0.00022899,2]
[311371177,1705069860532,-789.8151,0.00022899,2]
[311371178,1705069860545,-41164.89,0.00022899,2]
[311371179,1705069860555,-565234.16542777,0.000229,2]
[311371180,1705069860565,-1008660.16330471,0.000229,2]
[311371181,1705069861010,-93706.05733293,0.000229,2]
[311371182,1705069861023,-50943.55479461,0.000229,2]
[311371183,1705069861615,-710.08718202,0.00022504,2]
[311371184,1705069861624,-78.83281788,0.0002258,2]
[311371185,1705069861639,-421.16718212,0.0002258,2]
[311371186,1705069861648,-376.78850957,0.0002258,2]
[311371187,1705069861663,-123.21149043,0.0002258,2]
[311371188,1705069861673,-415.94407849,0.000229,2]
[311371189,1705069861684,-754.90961272,0.000229,2]
[311371190,1705069861695,-1616.14996358,0.000229,2]
[311371191,1705069861706,-585.18103821,0.000229,2]
[311371192,1705069861718,-595.6030002,0.000229,2]
[311371193,1705069861732,-381.815,0.000229,2]
[311371194,1705069863150,-327.4887,0.0002258,2]
[311371195,1705069863185,-172.5113,0.0002258,2]
[311371196,1705069863195,-500.0,0.0002258,2]
[311371197,1705069863205,-500.0,0.0002258,2]
[311371198,1705069863214,-500.0,0.0002258,5]
[311371199,1705069863224,-500.0,0.00022582,2]
[311371200,1705069863238,-595.03,0.00022854,2]
[311371201,1705069863253,-500.0,0.00022854,2]
[311371202,1705069863274,-500.0,0.00022854,5]
[311371203,1705069863284,-11235.96379362,0.000229,2]
[311371204,1705069863293,-159.3,0.00022941,2]
[311371205,1705069863303,-2181.71984843,0.0002299,2]
[311371206,1705069863312,-217.02178002,0.00022995,2]
[311371207,1705069863321,-500.0,0.00022995,2]
[311371208,1705069863331,-752.76048375,0.00022996,2]
[311371209,1705069863341,-514.52455724,0.00022997,2]
[311371210,1705069863350,-341.88104445,0.00022997,2]
[311371211,1705069863360,-16068.67317058,0.00022997,2]
[311371212,1705069863370,-155.78596393,0.00022997,2]
[311371213,1705069863380,-2535.53886827,0.00022997,2]
[311371214,1705069863390,-1612.44360123,0.00022998,2]
[311371215,1705069863399,-383.66804724,0.00022998,2]
[311371216,1705069863408,-264.94143778,0.00022998,2]
[311371217,1705069863418,-347.30480544,0.00022998,2]
[311371218,1705069863428,-519.21117705,0.00022998,2]
[311371219,1705069863438,-879.12831859,0.00022998,2]
[311371220,1705069863448,-397.75467235,0.00022998,2]
[311371221,1705069863459,-629.62,0.00022998,2]
[311371222,1705069863468,-923.31,0.00022998,2]
[311371223,1705069863482,-537.36,0.00022998,2]
[311371224,1705069863497,-760.69,0.00022998,2]
[311371225,1705069863507,-500.0,0.00022998,2]
[311371226,1705069863517,-500.0,0.00022998,2]
[311371227,1705069863527,-1592.71,0.00022998,2]
[311371228,1705069863537,-129151.06120848,0.00022999,2]
[311371229,1705069863549,-344.76,0.00022999,2]
[311371230,1705069863559,-500.0,0.00022999,2]
[311371231,1705069863570,-500.0,0.00022999,2]
[311371232,1705069863581,-500.0,0.00022999,2]
[311371233,1705069863591,-500.0,0.00022999,2]
[311371234,1705069863601,-500.0,0.00022999,2]
[311371235,1705069863611,-500.0,0.00022999,2]
[311371236,1705069863621,-1592.71,0.00022999,2]
[311371237,1705069863631,-1592.71,0.00022999,2]
[311371238,1705069863641,-1592.71,0.00022999,2]
[311371239,1705069863652,-1592.71,0.00022999,2]
[311371240,1705069863663,-1592.71,0.00022999,2]
[311371241,1705069863674,-371205.51968325,0.00023,2]
[311371242,1705069863684,-298472.81797437,0.00023,2]
[311371243,1705069863698,-9537.09999968,0.00023,2]
[311371244,1705069863711,-1310.89655929,0.00023,2]
[311371245,1705069863731,-500.0,0.00022583,2]
[311371246,1705069863750,-546.9330731,0.00023,2]
[311371247,1705069863763,-2443.52951912,0.00023,2]
[311371248,1705069863776,-2075.64305797,0.00023,2]
[311371249,1705069863789,-7785.23361961,0.00023,2]
[311371250,1705069863802,-31664.97345594,0.00023,2]
[311371251,1705069863815,-2291.192,0.00023,2]
[311371252,1705069863828,-511.680005,0.00023,2]
[311371253,1705069863845,-5350.88520897,0.00023,2]
[311371254,1705069863857,-4604.02382691,0.00023,2]
[311371255,1705069863869,-55000.5990058,0.00023,2]
[311371256,1705069863903,-1385.8004817,0.00023,2]
[311371257,1705069863923,-500.0,0.00022584,2]
[311371258,1705069863934,-156.6559995,0.00023,2]
[311371259,1705069863946,-455.6999996,0.00023,2]
[311371260,1705069863959,-893.4767687,0.00023,2]
[311371261,1705069863972,-285.32172466,0.00023,2]
[311371262,1705069863995,-976.5896002,0.00023,2]
[311371263,1705069864012,-249942.05196914,0.00023,2]
[311371264,1705069864025,-220541.7367311,0.00023,2]
[311371265,1705069864037,-150.0,0.00023,2]
[311371266,1705069864047,-760.98,0.00023128,2]
[311371267,1705069864058,-1576.67,0.00023128,2]
[311371268,1705069864069,-1676.63,0.00023128,2]
[311371269,1705069864079,-1776.52,0.00023128,2]
[311371270,1705069864090,-1028.33,0.00023128,2]
[311371271,1705069864101,-903.76,0.00023128,2]
[311371272,1705069864111,-823.09,0.00023128,2]
[311371273,1705069864121,-500.0,0.00023128,2]
[311371274,1705069864133,-1992.9,0.00023128,2]
[311371275,1705069864143,-500.0,0.00023128,2]
[311371276,1705069864154,-500.0,0.00023128,2]
[311371277,1705069864164,-1088.57,0.00023128,2]
[311371278,1705069864175,-592.52,0.00023128,2]
[311371279,1705069864186,-1069.49,0.00023128,2]
[311371280,1705069864196,-11473.02,0.00023128,2]
[311371281,1705069864207,-1045.86,0.00023128,2]
[311371282,1705069864218,-500.0,0.00023128,2]
[311371283,1705069864228,-1530.26,0.00023128,2]
[311371284,1705069864249,-693.02,0.00023128,2]
[311371285,1705069864262,-500.0,0.00023128,2]
[311371286,1705069864272,-500.0,0.00023128,2]
[311371287,1705069864284,-500.0,0.00023128,2]
[311371288,1705069864294,-773.0,0.00023128,2]
[311371289,1705069864305,-500.0,0.00023128,2]
[311371290,1705069864315,-1161.03,0.00023128,2]
[311371291,1705069864326,-500.0,0.00023128,2]
[311371292,1705069864337,-500.0,0.00023128,2]
[311371293,1705069864349,-500.0,0.00023128,2]
[311371294,1705069864359,-500.0,0.00023128,2]
[311371295,1705069864370,-500.0,0.00023128,2]
[311371296,1705069864381,-500.0,0.00023128,2]
[311371297,1705069864392,-500.0,0.00023128,2]
[311371298,1705069864403,-3055.75,0.00023128,2]
[311371299,1705069864414,-500.0,0.00023128,2]
[311371300,1705069864425,-500.0,0.00023128,5]
[311371301,1705069864436,-996.78,0.00023129,2]
[311371302,1705069864447,-939.36,0.00023129,2]
[311371303,1705069864457,-535.32,0.00023129,2]
[311371304,1705069864467,-1978.54,0.00023129,2]
[311371305,1705069864477,-570.64,0.00023129,2]
[311371306,1705069864495,-10562.85,0.00023129,2]
[311371307,1705069864505,-6373.11,0.00023129,2]
[311371308,1705069864514,-928.84,0.00023129,2]
[311371309,1705069864524,-749.0,0.00023129,2]
[311371310,1705069864534,-536.68,0.00023129,2]
[311371311,1705069864547,-2087.57,0.00023129,2]
[311371312,1705069864558,-904.81,0.00023129,2]
[311371313,1705069864568,-889.19,0.00023129,2]
[311371314,1705069864577,-978.77,0.00023129,2]
[311371315,1705069864591,-712.93,0.00023129,2]
[311371316,1705069864600,-553.32,0.00023129,2]
[311371317,1705069864610,-1083.57,0.00023129,2]
[311371318,1705069864620,-5000.64,0.00023129,2]
[311371319,1705069864630,-1837.15,0.00023129,2]
[311371320,1705069864640,-500.0,0.00023129,2]
[311371321,1705069864650,-1063.77,0.00023129,2]
[311371322,1705069864659,-500.0,0.00023129,2]
[311371323,1705069864669,-4397.81,0.00023129,2]
[311371324,1705069864680,-1384.9,0.00023129,2]
[311371325,1705069864691,-1749.07,0.00023129,2]
[311371326,1705069864701,-8501.24,0.00023129,2]
[311371327,1705069864712,-550.62,0.00023129,2]
[311371328,1705069864722,-500.0,0.00023129,2]
[311371329,1705069864735,-563.63,0.00023129,2]
[311371330,1705069864745,-2396.88,0.00023129,2]
[311371331,1705069864755,-947.32,0.00023129,2]
[311371332,1705069864765,-3427.97,0.00023129,2]
[311371333,1705069864775,-3063.47,0.00023129,2]
[311371334,1705069864785,-2388.38,0.00023129,2]
[311371335,1705069864794,-1809.41,0.00023129,2]
[311371336,1705069864804,-4615.76611416,0.0002313,2]
[311371337,1705069864813,-500.0,0.0002313,2]
[311371338,1705069864823,-500.0,0.0002313,2]
[311371339,1705069864832,-500.0,0.0002313,2]
[311371340,1705069864841,-502.36,0.0002313,2]
[311371341,1705069864851,-516.86,0.0002313,2]
[311371342,1705069864860,-612.81,0.0002313,2]
[311371343,1705069864870,-500.0,0.0002313,2]
[311371344,1705069864879,-513.4,0.0002313,2]
[311371345,1705069864889,-500.0,0.0002313,2]
[311371346,1705069864900,-500.0,0.0002313,2]
[311371347,1705069864909,-500.0,0.0002313,2]
[311371348,1705069864919,-500.0,0.0002313,2]
[311371349,1705069864929,-500.0,0.0002313,2]
[311371350,1705069864939,-500.0,0.0002313,2]
[311371351,1705069864949,-500.0,0.0002313,2]
[311371352,1705069864959,-504.92,0.0002313,2]
[311371353,1705069864969,-500.0,0.0002313,2]
[311371354,1705069864979,-500.0,0.0002313,2]
[311371355,1705069864991,-500.0,0.0002313,2]
[311371356,1705069865001,-500.0,0.0002313,2]
[311371357,1705069865011,-500.0,0.0002313,2]
[311371358,1705069865022,-500.0,0.0002313,2]
[311371359,1705069865032,-500.0,0.0002313,2]
[311371360,1705069865043,-500.0,0.0002313,2]
[311371361,1705069865053,-500.0,0.0002313,2]
[311371362,1705069865063,-500.0,0.0002313,7]
[311371363,1705069865074,-500.0,0.0002313,2]
[311371364,1705069865085,-500.0,0.0002313,2]
[311371365,1705069865095,-605.75,0.0002313,2]
[311371366,1705069865106,-500.0,0.0002313,2]
[311371367,1705069865115,-500.0,0.0002313,2]
[311371368,1705069865126,-500.0,0.0002313,2]
[311371369,1705069865136,-500.0,0.0002313,2]
[311371370,1705069865146,-539.29,0.0002313,2]
[311371371,1705069865156,-500.0,0.0002313,2]
[311371372,1705069865166,-500.0,0.0002313,2]
[311371373,1705069865176,-585.54,0.0002313,2]
[311371374,1705069865186,-500.0,0.0002313,2]
[311371375,1705069865196,-500.25,0.0002313,2]
[311371376,1705069865206,-667.11,0.0002313,2]
[311371377,1705069865217,-503.41,0.0002313,2]
[311371378,1705069865227,-510.64,0.0002313,2]
[311371380,1705069865244,-502.72,0.0002313,2]
[311371381,1705069865253,-547.84,0.0002313,2]
[311371382,1705069865263,-500.0,0.0002313,2]
[311371383,1705069865274,-500.0,0.0002313,2]
[311371384,1705069865284,-500.0,0.0002313,2]
[311371385,1705069865295,-500.0,0.0002313,2]
[311371386,1705069865305,-500.0,0.0002313,2]
[311371387,1705069865315,-500.0,0.0002313,2]
[311371388,1705069865326,-166.73,0.0002313,2]
[311371389,1705069865336,-500.0,0.0002313,2]
[311371390,1705069865347,-500.0,0.0002313,2]
[311371391,1705069865358,-500.0,0.0002313,2]
[311371392,1705069865368,-500.0,0.0002313,2]
[311371393,1705069865379,-500.0,0.0002313,2]
[311371394,1705069865389,-759.5,0.0002313,2]
[311371395,1705069865400,-500.0,0.0002313,2]
[311371396,1705069865410,-500.0,0.0002313,2]
[311371397,1705069865421,-500.0,0.0002313,2]
[311371398,1705069865431,-594.48,0.0002313,2]
[311371399,1705069865442,-500.0,0.0002313,2]
[311371400,1705069865452,-500.0,0.0002313,2]
[311371401,1705069865463,-500.0,0.0002313,2]
[311371402,1705069865474,-526.9,0.0002313,2]
[311371403,1705069865489,-500.0,0.0002313,2]
[311371404,1705069865499,-500.0,0.0002313,2]
[311371405,1705069865510,-828.68,0.0002313,2]
[311371406,1705069865520,-500.0,0.0002313,2]
[311371407,1705069865531,-500.0,0.0002313,2]
[311371408,1705069865542,-500.0,0.0002313,2]
[311371409,1705069865552,-527.53,0.0002313,2]
[311371410,1705069865562,-500.0,0.0002313,2]
[311371411,1705069865572,-1088.6,0.0002313,2]
[311371412,1705069865583,-500.0,0.0002313,2]
[311371413,1705069865594,-500.0,0.0002313,2]
[311371414,1705069865604,-500.0,0.0002313,2]
[311371415,1705069865614,-1291.94,0.0002313,2]
[311371416,1705069865625,-500.0,0.0002313,2]
[311371417,1705069865636,-810.7,0.0002313,2]
[311371418,1705069865647,-4607.32,0.0002313,2]
[311371419,1705069865657,-504.06,0.0002313,2]
[311371420,1705069865668,-500.0,0.0002313,2]
[311371421,1705069865678,-500.0,0.0002313,2]
[311371422,1705069865689,-512.6,0.0002313,2]
[311371423,1705069865700,-500.0,0.0002313,2]
[311371424,1705069865711,-500.0,0.0002313,2]
[311371425,1705069865721,-500.0,0.0002313,2]
[311371426,1705069865735,-2315.41,0.0002313,2]
[311371427,1705069865751,-500.0,0.0002313,2]
[311371428,1705069865761,-500.0,0.0002313,2]
[311371429,1705069865772,-500.0,0.0002313,2]
[311371430,1705069865782,-500.0,0.0002313,2]
[311371431,1705069865793,-1074.73,0.0002313,2]
[311371432,1705069865803,-1389.91,0.0002313,2]
[311371433,1705069865813,-500.0,0.0002313,2]
[311371434,1705069865823,-845.05,0.0002313,2]
[311371435,1705069865833,-500.0,0.0002313,2]
[311371436,1705069865843,-888.54,0.0002313,2]
[311371437,1705069865854,-500.0,0.0002313,2]
[311371438,1705069865865,-500.0,0.0002313,2]
[311371439,1705069865876,-1741.88,0.0002313,2]
[311371440,1705069865886,-1065.09,0.0002313,2]
[311371441,1705069865897,-500.0,0.0002313,2]
[311371442,1705069865908,-500.0,0.0002313,2]
[311371443,1705069865918,-500.0,0.0002313,2]
[311371444,1705069865928,-547.61,0.0002313,2]
[311371445,1705069865939,-866.87,0.0002313,2]
[311371446,1705069865949,-500.0,0.0002313,2]
[311371447,1705069865959,-500.0,0.0002313,2]
[311371448,1705069865969,-500.0,0.0002313,2]
[311371449,1705069865980,-500.0,0.0002313,2]
[311371450,1705069865992,-500.0,0.0002313,2]
[311371451,1705069866003,-500.0,0.0002313,2]
[311371452,1705069866013,-1887.65,0.0002313,2]
[311371453,1705069866023,-500.0,0.0002313,2]
[311371454,1705069866032,-500.0,0.0002313,2]
[311371455,1705069866042,-1592.71,0.0002313,2]
[311371456,1705069866053,-500.0,0.0002313,2]
[311371457,1705069866063,-679.52,0.0002313,2]
[311371458,1705069866073,-978.52,0.0002313,2]
[311371459,1705069866083,-538.5,0.0002313,2]
[311371460,1705069866093,-523.52,0.0002313,2]
[311371461,1705069866250,-500.0,0.0002313,2]
[311371462,1705069866260,-552.31,0.0002313,2]
[311371463,1705069866270,-1607.05,0.0002313,2]
[311371464,1705069866280,-625.78,0.0002313,2]
[311371465,1705069866290,-500.0,0.0002313,2]
[311371466,1705069866301,-1162.04,0.0002313,2]
[311371467,1705069866311,-500.0,0.0002313,2]
[311371468,1705069866322,-640.68,0.0002313,2]
[311371469,1705069866333,-500.0,0.0002313,2]
[311371470,1705069866343,-3925.57,0.0002313,2]
[311371471,1705069866354,-6529.19,0.0002313,2]
[311371472,1705069866365,-500.0,0.0002313,2]
[311371473,1705069866374,-500.0,0.0002313,2]
[311371474,1705069866385,-1245.87,0.0002313,2]
[311371475,1705069866394,-500.0,0.0002313,2]
[311371476,1705069866404,-500.0,0.00023131,2]
[311371477,1705069866414,-500.0,0.00023131,2]
[311371478,1705069866424,-500.0,0.00023131,2]
[311371479,1705069866434,-502.5,0.00023131,2]
[311371480,1705069866448,-500.0,0.00023131,2]
[311371481,1705069866489,-500.0,0.00023131,2]
[311371482,1705069866500,-500.0,0.00023131,2]
[311371483,1705069866510,-702.1,0.00023131,2]
[311371484,1705069866520,-500.0,0.00023131,2]
[311371485,1705069866530,-544.39,0.00023131,2]
[311371486,1705069866542,-672.68,0.00023131,2]
[311371487,1705069866553,-500.0,0.00023131,2]
[311371488,1705069866564,-500.0,0.00023131,2]
[311371489,1705069866574,-500.0,0.00023131,2]
[311371490,1705069866585,-729.54,0.00023131,2]
[311371491,1705069866595,-500.0,0.00023131,2]
[311371492,1705069866605,-500.0,0.00023131,2]
[311371493,1705069866616,-500.0,0.00023131,2]
[311371494,1705069866628,-566.81,0.00023131,2]
[311371495,1705069866638,-500.0,0.00023131,2]
[311371496,1705069866648,-668.25,0.00023131,2]
[311371497,1705069866659,-500.0,0.00023131,2]
[311371498,1705069866669,-500.0,0.00023131,2]
[311371499,1705069866680,-695.69,0.00023131,2]
[311371500,1705069866690,-500.0,0.00023131,2]
[311371501,1705069866701,-500.0,0.00023131,2]
[311371502,1705069866711,-500.0,0.00023131,2]
[311371503,1705069866721,-500.84,0.00023131,2]
[311371504,1705069866735,-693.65,0.00023131,2]
[311371505,1705069866745,-500.0,0.00023131,2]
[311371506,1705069866755,-738.92,0.00023131,2]
[311371507,1705069866766,-500.0,0.00023131,2]
[311371508,1705069866776,-818.71,0.00023131,2]
[311371509,1705069866786,-1260.63,0.00023131,2]
[311371510,1705069866796,-500.0,0.00023131,2]
[311371511,1705069866805,-997.12,0.00023131,2]
[311371512,1705069866815,-500.0,0.00023131,2]
[311371513,1705069866826,-791.08,0.00023131,2]
[311371514,1705069866836,-500.0,0.00023131,2]
[311371515,1705069866846,-500.0,0.00023131,2]
[311371516,1705069866856,-583.49,0.00023131,2]
[311371517,1705069866868,-764.86,0.00023131,2]
[311371518,1705069866877,-500.0,0.00023131,2]
[311371519,1705069866887,-500.0,0.00023131,2]
[311371520,1705069866897,-500.0,0.00023131,2]
[311371521,1705069866906,-500.0,0.00023131,2]
[311371522,1705069866916,-500.0,0.00023131,2]
[311371523,1705069866925,-500.0,0.00023131,2]
[311371524,1705069866935,-500.0,0.00023131,2]
[311371525,1705069866944,-666.51,0.00023131,2]
[311371526,1705069866954,-500.0,0.00023131,2]
[311371527,1705069866963,-778.72,0.00023131,2]
[311371528,1705069866973,-538.35,0.00023131,2]
[311371529,1705069866986,-500.0,0.00023131,2]
[311371530,1705069866996,-500.0,0.00023131,2]
[311371531,1705069867005,-500.0,0.00023131,2]
[311371532,1705069867015,-213.41016934,0.00023131,2]
[311371533,1705069867025,-500.0,0.00023131,2]
[311371534,1705069867035,-500.0,0.00023131,2]
[311371535,1705069867045,-500.0,0.00023131,2]
[311371536,1705069867055,-523.13,0.00023131,2]
[311371537,1705069867064,-500.0,0.00023131,2]
[311371538,1705069867075,-500.0,0.00023131,2]
[311371539,1705069867084,-500.0,0.00023131,2]
[311371540,1705069867095,-1386.41,0.00023131,2]
[311371541,1705069867105,-500.0,0.00023131,2]
[311371542,1705069867115,-500.0,0.00023131,2]
[311371543,1705069867126,-500.0,0.00023131,2]
[311371544,1705069867135,-500.0,0.00023131,2]
[311371545,1705069867146,-913.03,0.00023131,2]
[311371546,1705069867156,-632.3,0.00023131,2]
[311371547,1705069867166,-500.0,0.00023131,2]
[311371548,1705069867176,-507.75,0.00023131,2]
[311371549,1705069867186,-713.86,0.00023131,2]
[311371550,1705069867195,-500.0,0.00023131,2]
[311371551,1705069867205,-565.93,0.00023131,2]
[311371552,1705069867215,-528.24,0.00023131,2]
[311371553,1705069867225,-1012.05,0.00023131,2]
[311371554,1705069867238,-2200.73,0.00023131,2]
[311371555,1705069867249,-500.0,0.00023131,2]
[311371556,1705069867260,-500.0,0.00023131,2]
[311371557,1705069867270,-500.0,0.00023131,2]
[311371558,1705069867280,-500.0,0.00023131,2]
[311371559,1705069867290,-500.0,0.00023131,2]
[311371560,1705069867300,-574.28,0.00023131,2]
[311371561,1705069867311,-500.0,0.00023131,2]
[311371562,1705069867321,-610.82,0.00023131,2]
[311371563,1705069867331,-679.81,0.00023131,5]
[311371564,1705069867341,-560.5,0.00023131,2]
[311371565,1705069867351,-1995.08,0.00023131,2]
[311371566,1705069867361,-500.0,0.00023131,2]
[311371567,1705069867371,-1910.97,0.00023131,2]
[311371568,1705069867380,-500.0,0.00023131,2]
[311371569,1705069867391,-500.0,0.00023131,2]
[311371570,1705069867400,-500.0,0.00023131,2]
[311371571,1705069867410,-500.0,0.00023131,2]
[311371572,1705069867420,-500.0,0.00023131,2]
[311371573,1705069867430,-1099.3,0.00023131,2]
[311371574,1705069867440,-531.38,0.00023131,2]
[311371575,1705069867451,-500.0,0.00023131,2]
[311371576,1705069867461,-832.14,0.00023131,2]
[311371577,1705069867471,-871.05,0.00023131,2]
[311371578,1705069867481,-963.48,0.00023131,2]
[311371579,1705069867492,-500.0,0.00023131,2]
[311371580,1705069867503,-500.0,0.00023131,2]
[311371581,1705069867513,-674.09,0.00023131,2]
[311371582,1705069867523,-500.0,0.00023131,2]
[311371583,1705069867533,-500.0,0.00023131,2]
[311371584,1705069867547,-673.94,0.00023131,2]
[311371585,1705069867558,-1270.12,0.00023131,2]
[311371586,1705069867569,-536.49,0.00023131,2]
[311371587,1705069867580,-500.0,0.00023131,2]